Cogmind - Beta 13 @@@ ROGUE MODE // 2024.04.10 @ 19:57:09 Player: Gisterack Result: Core destroyed Performance ------------- Evolutions (2) 1000 Regions Visited (3) 600 Robots Destroyed (60) 300 Value Destroyed (1726) 1726 Prototype IDs (2) 40 Alien Tech Used (0) 0 Bonus (132) 132 TOTAL SCORE: 3798 Bonus ------- High Alert Combat Kills 132 Cogmind --------- Core Integrity 0/550 Matter 300/300 Energy 36/100 System Corruption 0% Temperature Cool (0) Movement Core (50) Location -8/Materials Parts ------- > --- POWER (2) -------- (None) > --- PROPULSION (4) --- (None) > --- UTILITY (2) ------ Terrain Scan Processor > --- WEAPON (3) ------- Particle Gun > --- INVENTORY (5) ---- Light Nuclear Core Light Treads Improved Heat Sink High-capacity Matter Pod (200) Peak State ------------ > --- POWER ------------ Light Ion Engine Light Deuterium Engine > --- PROPULSION ------- Cesium-ion Thruster Cesium-ion Thruster Cesium-ion Thruster Cesium-ion Thruster > --- UTILITY ---------- Thermal Generator Shield Generator > --- WEAPON ----------- Heavy Assault Rifle Heavy Assault Rifle Grenade Launcher > --- INVENTORY -------- Nuclear Core High-capacity Matter Pod [Rating: 26] Favorites ----------- Power Light Ion Engine Engine Light Ion Engine Power Core Light Nuclear Core Propulsion Aluminum Leg Leg Aluminum Leg Flight Unit Cesium-ion Thruster Utility Medium Armor Plating Device Seismic Detector Storage High-capacity Matter Pod Processor Signal Interpreter Protection Medium Armor Plating Weapon EM Shotgun Energy Gun EM Shotgun Ballistic Gun Heavy Assault Rifle Ballistic Cannon Improved Light Cannon Launcher Grenade Launcher Build | -11 -10 -9 -8 ------- Run | Yrd Mat Mat Mat Slots Evolved 4 | . . 2 2 Power 1 | . . 1 . Propulsion 2 | . . . 2 Utility . | . . . . Weapon 1 | . . 1 . Parts Attached 52 | 5 15 12 20 Power 9 | 1 1 6 1 Engine 4 | 1 . 2 1 Core 5 | . 1 4 . Reactor . | . . . . Propulsion 11 | 2 1 2 6 Treads . | . . . . Leg 7 | 2 1 . 4 Wheel . | . . . . Hover . | . . . . Flight 4 | . . 2 2 Utility 12 | . 4 2 6 Device 4 | . 1 . 3 Storage 3 | . . 1 2 Processor 2 | . . 1 1 Hackware . | . . . . Protection 3 | . 3 . . Artifact . | . . . . Weapon 20 | 2 9 2 7 Energy Gun 12 | 1 5 1 5 Energy Cannon . | . . . . Ballistic Gun 4 | 1 1 . 2 Ballistic Cannon 2 | . 2 . . Launcher 2 | . 1 1 . Special Weapon . | . . . . Impact Weapon . | . . . . Slashing Weapon . | . . . . Piercing Weapon . | . . . . Special Melee Weapon . | . . . . Unidentified Prototypes . | . . . . Parts Lost 15 | . . 1 14 Power 1 | . . . 1 Propulsion 7 | . . . 7 Utility 2 | . . . 2 Weapon 5 | . . 1 4 Highest Loss Streak 7 | . . 1 7 To Critical Strikes . | . . . . Average Slot Usage (%) 86 | . 94 82 70 Engine 7 | . 7 8 8 Core 4 | . 6 4 . Leg 20 | . 28 15 7 Flight 5 | . . 6 19 Device 4 | . 5 . 9 Storage 1 | . . 1 2 Processor 1 | . . 2 3 Protection 14 | . 17 15 . Energy Gun 13 | . 14 15 7 Ballistic Gun 2 | . 3 . 8 Ballistic Cannon 3 | . 6 . . Launcher 6 | . 4 11 2 Naked Turns . | . . . . Heaviest Build 31 | 7 26 31 23 Greatest Support 40 | 20 20 20 40 Greatest Overweight (x) 4 | . 1 2 4 Average Overweight (x) . | . . . . Largest Inventory Capacity 5 | 5 5 5 5 Average Capacity 5 | 5 5 5 5 Most Carried 5 | 2 5 5 5 Average Carried 3 | . 3 3 1 Final Capacity 5 | 5 5 5 5 Final Carried 5 | 1 4 5 4 Class Distribution -------------------- 55% | Mutant 24% | Tank 15% | Sprinter 4% | Scavenger-Mutant Dominant Class ---------------- Mutant | -10/Materials Tank | -9/Materials Sprinter | -8/Materials Resources | -11 -10 -9 -8 ----------- Run | Yrd Mat Mat Mat Matter Collected 1688 | 265 225 692 506 Remotely . | . . . . Salvage Created 1638 | 62 309 545 722 Parts 131 | 6 36 43 46 Haulers Intercepted . | . . . . Recyclers Shooed 2 | . . 2 . Parts Field Recycled . | . . . . Retrieved Matter . | . . . . Parts Self-Destructed . | . . . . Prevented . | . . . . Kills | -11 -10 -9 -8 ------- Run | Yrd Mat Mat Mat Combat Hostiles Destroyed 45 | 1 11 17 16 Guns 26 | 1 4 9 12 Cannons 4 | . 4 . . AOE 15 | . 3 8 4 Classes Destroyed 10 | 2 4 2 2 Worker 1 | . 1 . . Builder 6 | . 3 . 3 Tunneler 1 | 1 . . . Operator 1 | . . 1 . Watcher 6 | . 3 3 . Swarmer 13 | . 6 7 . Grunt 24 | 1 5 7 11 Brawler 2 | . . . 2 Duelist 1 | . . . 1 Sentry 5 | . . 3 2 Best Kill Streak 5 | 2 4 4 5 Combat Bots Only 4 | 1 3 4 4 Max Kills in Single Turn 4 | 1 2 4 2 Gunslinging 1 | . . . 1 Exploded 4 | . 1 4 1 Melee . | . . . . Uniques/NPCs Destroyed . | . . . . Combat | -11 -10 -9 -8 -------- Run | Yrd Mat Mat Mat Hostile Shots Fired 231 | 8 29 46 148 Missed 72 | 6 8 18 40 Damage Taken 2237 | 20 331 292 1594 Core 647 | . 25 50 572 Absorbed by Shields 169 | . . . 169 Regen/Repaired (Parts) 33 | . 33 . . Core Remaining (%) 92 | 100 90 87 . Volleys Fired 134 | 5 25 36 68 Largest 3 | 2 2 3 2 Hottest 130 | 70 90 120 130 Shots Fired 212 | 10 39 60 103 Gun 156 | 10 16 43 87 Cannon 14 | . 14 . . Launcher 42 | . 9 17 16 Special . | . . . . Kinetic 81 | 5 24 . 52 Thermal 27 | 5 . . 22 Explosive 42 | . 9 17 16 Electromagnetic 62 | . 6 43 13 Robot Hit Streak 16 | 5 7 16 10 Robot Miss Streak 5 | 3 4 3 5 Penetration Max . | . . . . Secondary Targets 3 | . . . 3 Max Gunslinging Chain 1 | . . . 1 Shots Hit Robots 113 | 6 17 34 56 Core Hits 114 | 3 29 35 47 Critical Kills 1 | . . . 1 Critical Parts Destroyed . | . . . . Critical Strikes 2 | . . . 2 Burn 1 | . . . 1 Destroy 1 | . . . 1 Melee Attacks . | . . . . Impact . | . . . . Slashing . | . . . . Piercing . | . . . . Sneak Attacks . | . . . . Combat Hostiles . | . . . . Follow-up Attacks . | . . . . Damage Inflicted 3440 | 88 851 1102 1399 Guns 1573 | 88 88 459 938 Cannons 136 | . 136 . . Explosions 1718 | . 627 643 448 Melee . | . . . . Ramming 13 | . . . 13 Kinetic 761 | 26 192 . 543 Thermal 420 | 62 133 . 225 Explosive 1552 | . 461 643 448 Electromagnetic 694 | . 65 459 170 Impact . | . . . . Slashing . | . . . . Piercing . | . . . . Highest Corruption 4 | . 4 . . Average Corruption 3 | . 3 . . Corruption Purged . | . . . . Corruption Blocked . | . . . . Effects 7 | . 7 . . Message Errors 2 | . 2 . . Matter Fused 1 | . 1 . . Energy Discharges 3 | . 3 . . Data Loss (minor) 1 | . 1 . . Overload Shots . | . . . . Overflow Damage 7 | . 1 6 . Projectiles . | . . . . Explosions 7 | . 1 6 . Melee . | . . . . Knockbacks . | . . . . Impact . | . . . . Kinetic . | . . . . Secondary . | . . . . Self-Inflicted Damage 189 | . 137 4 48 Shots 7 | . 4 1 2 Rammed 3 | . . . 3 Targets Rammed 3 | . . . 3 Kicked . | . . . . Crushed . | . . . . Highest Temperature 498 | 57 102 274 498 Average Temperature 113 | 30 37 114 156 Received Heat Transfer 944 | 12 42 75 815 Effects 6 | . . . 6 Shutdowns 1 | . . . 1 Interference 3 | . . . 3 Short Circuit 2 | . . . 2 Siege Activations . | . . . . Robots Corrupted . | . . . . Combat Hostiles . | . . . . Parts Fried 1 | . . 1 . Impact Corruptions . | . . . . Robots Melted . | . . . . Combat Hostiles . | . . . . Parts Melted . | . . . . Heat Transferred 1014 | 185 200 . 629 Parts Sabotaged . | . . . . Parts Stolen . | . . . . Parts Stripped . | . . . . Power Chain Reactions 1 | . 1 . . Alert | -11 -10 -9 -8 ------- Run | Yrd Mat Mat Mat Peak Influence 639 | 25 411 415 639 Initial 150 | . 16 26 150 Average 238 | 5 188 233 461 Maximum Alert Level 2 | . 2 2 2 Low Security (%) 37 | 100 56 18 7 Level 1 51 | . 43 79 22 Level 2 11 | . . 1 69 Level 3 . | . . . . Level 4 . | . . . . Level 5 . | . . . . High Security . | . . . . Max Security . | . . . . Squads Dispatched 9 | . 2 5 2 Investigation 6 | . 1 5 . Extermination . | . . . . Reinforcement 3 | . 1 . 2 Assault . | . . . . Garrison . | . . . . Intercept . | . . . . Searches Triggered . | . . . . Construction Impeded 1 | . . . 1 Haulers Reinforced . | . . . . Active Scanning Responses . | . . . . Cargo Convoy Interrupts . | . . . . Stealth | -11 -10 -9 -8 --------- Run | Yrd Mat Mat Mat Distress Signals 3 | . . 2 1 Communications Jammed . | . . . . Distress Signals . | . . . . Times Spotted 59 | 1 17 21 20 Peak Tracking Total 7 | 1 3 5 7 Tactical Retreats 1 | . . 1 . Traps | -11 -10 -9 -8 ------- Run | Yrd Mat Mat Mat Traps Triggered 2 | . 2 . . Indirectly . | . . . . Trap Hack Attempts . | . . . . Triggered . | . . . . Disarmed . | . . . . Reprogrammed . | . . . . Reused . | . . . . Traps Extracted . | . . . . Installed . | . . . . Triggered . | . . . . Machines | -11 -10 -9 -8 ---------- Run | Yrd Mat Mat Mat Machines Disabled 13 | . 6 1 6 Max in Single Turn 2 | . 1 1 2 Machines Repaired . | . . . . Machines Dismantled . | . . . . Machines Sabotaged . | . . . . Overloaded Fab Kills . | . . . . Hacking | -11 -10 -9 -8 --------- Run | Yrd Mat Mat Mat Machines Accessed 16 | . 6 8 2 Terminals 13 | . 5 6 2 Fabricators . | . . . . Repair Stations 1 | . 1 . . Recycling Units 1 | . . 1 . Scanalyzers 1 | . . 1 . Garrison Access . | . . . . Total Hacks 52 | . 20 29 3 Successful 33 | . 14 17 2 Failed 18 | . 6 11 1 Catastrophic 3 | . 1 2 . Database Lockouts 1 | . . 1 . Manual . | . . . . Terminals 41 | . 16 22 3 Fabricators . | . . . . Repair Stations 4 | . 4 . . Recycling Units 4 | . . 4 . Scanalyzers 3 | . . 3 . Garrison Access . | . . . . Terminal Hacks 25 | . 11 12 2 Record 13 | . 6 7 . Robot Analysis 1 | . . 1 . Prototype ID Bank 1 | . . . 1 Branch Access Points 1 | . 1 . . Alert Level 3 | . 2 1 . Dispatch Records 3 | . 1 1 1 Investigation Status 1 | . . 1 . Registered Components 1 | . 1 . . Zone Layout 1 | . . 1 . Fabricator Hacks . | . . . . Repair Station Hacks 3 | . 3 . . Scan Component 2 | . 2 . . Repair 1 | . 1 . . Recycling Unit Hacks 4 | . . 4 . Recycle Component 1 | . . 1 . Process 1 | . . 1 . Report Inventory 1 | . . 1 . Retrieve Matter 1 | . . 1 . Scanalyzer 1 | . . 1 . Insert Component 1 | . . 1 . Garrison Access Hacks . | . . . . Unauthorized Hacks . | . . . . Terminals . | . . . . Fabricators . | . . . . Repair Stations . | . . . . Recycling Units . | . . . . Scanalyzers . | . . . . Garrison Access . | . . . . Data Cores Recovered 1 | . . 1 . Used . | . . . . Hacking Detections 12 | . 4 7 1 Full Trace Events 7 | . 2 5 . Feedback Events . | . . . . Feedback Blocked . | . . . . Robot Schematics Acquired . | . . . . Robots Built . | . . . . Authchips . | . . . . Time . | . . . . Total Robot Build Rating . | . . . . Part Schematics Acquired . | . . . . Parts Built . | . . . . Authchips . | . . . . Time . | . . . . Total Part Build Rating . | . . . . Parts Repaired 1 | . 1 . . Time 26 | . 26 . . Parts Recycled 1 | . . 1 . Recycled Matter 20 | . . 20 . Retrieved Matter . | . . . . Retrieved Components . | . . . . Parts Scanalyzed 1 | . . 1 . Part Schematics Acquired . | . . . . Parts Damaged . | . . . . Bothacking | -11 -10 -9 -8 ------------ Run | Yrd Mat Mat Mat Used RIF Installer . | . . . . Robots Hacked . | . . . . Non-combat . | . . . . Combat . | . . . . Robot Hacks Applied . | . . . . Relay Couplers Released . | . . . . Fabnet Peak Effective % . | . . . . Robots Rewired . | . . . . Allies Hacked . | . . . . Hacks Repelled . | . . . . Allies | -11 -10 -9 -8 -------- Run | Yrd Mat Mat Mat Total Allies . | . . . . Largest Group . | . . . . Highest-Rated Group . | . . . . Highest-Rated Ally . | . . . . Total Orders . | . . . . Ally Attacks . | . . . . Total Damage . | . . . . Kills . | . . . . Allies Corrupted . | . . . . Allies Melted . | . . . . Intel | -11 -10 -9 -8 ------- Run | Yrd Mat Mat Mat Robot Analysis Total 1 | . . 1 . Derelict Logs Recovered . | . . . . Drone Launches . | . . . . Drone Recoveries . | . . . . Exploration | -11 -10 -9 -8 ------------- Run | Yrd Mat Mat Mat Turns Passed 2885 | 100 1358 997 430 Spaces Moved 2210 | 73 770 1009 358 Core 32 | 19 . . 13 Treads . | . . . . Legs 1192 | 54 770 309 59 Wheels . | . . . . Hover . | . . . . Flight 986 | . . 700 286 Fastest Speed 26 | 50 120 32 26 Average Speed 104 | 101 158 80 52 Slowest Speed 250 | 120 190 192 250 Overloaded Moves . | . . . . Propulsion Burnouts . | . . . . Robots Hopped 10 | . . 8 2 Cave-ins Triggered . | . . . . Exploration Rate (%) 39 | 7 77 57 15 Regions Visited 3 Branch Regions . Pre-discovered Areas . | . . . . Known Exits Taken 1 | . . 1 . Unknown Exits Taken 2 | 1 1 . . Scrap Searched . | . . . . Spaces Dug . | . . . . Terrain Destroyed 245 | . 57 121 67 Melee . | . . . . Projectile 1 | . 1 . . AOE 244 | . 56 121 67 Terrain Rammed . | . . . . Walls Destroyed . | . . . . Machines Disabled . | . . . . Actions | -11 -10 -9 -8 --------- Run | Yrd Mat Mat Mat Total 2591 | 88 873 1134 496 Wait 99 | . 29 48 22 Move 2187 | 72 769 992 354 Hop 10 | . . 8 2 Pick Up 59 | 6 20 15 18 Fast Attach 4 | . . 4 . Attach 32 | 5 4 7 16 Detach 8 | . . 6 2 Swap 16 | . 11 1 4 Drop 40 | . 15 17 8 Fire 134 | 5 25 36 68 Melee . | . . . . Ram 2 | . . . 2 Kick . | . . . . Crush . | . . . . Escape Stasis . | . . . . Rewire . | . . . . Trap . | . . . . Miscellaneous . | . . . . Route ------- -11/Scrapyard -10/Materials (discovered 4 exits: *Mat x2 / *Min x2) -9/Materials (discovered 5 exits: *Mat x2 / [*Min x2] / [*Sto]) -8/Materials History --------- Turn | Location | Event 2 | -11/Scrapyard | Met Revision 17 58 | -11/Scrapyard | Discovered new exit (range 8) 101 | -11/Scrapyard | Entered Materials 208 | -10/Materials | Identified exit to Mines 310 | -10/Materials | Build established: Mutant 633 | -10/Materials | Discovered new exit (range 16) 919 | -10/Materials | Discovered new exit (range 10) 1228 | -10/Materials | Repaired Grenade Launcher 1459 | -10/Materials | Entered another Materials area 1459 | -9/Materials | Evolved 2 slots: Power x1, Weapon x1 1476 | -9/Materials | Discovered new exit (range 18) 1758 | -9/Materials | Build established: Tank 1853 | -9/Materials | Discovered new exit (range 11) 2008 | -9/Materials | Discovered new exit (range 15) 2147 | -9/Materials | Central database locked down 2306 | -9/Materials | Discovered new exit (range 15) 2310 | -9/Materials | Identified exit to Materials 2432 | -9/Materials | Discovered exit to Materials (range 15) 2456 | -9/Materials | Entered another Materials area 2456 | -8/Materials | Evolved 2 slots: Propulsion x2 2482 | -8/Materials | Build established: Sprinter 2730 | -8/Materials | Lost 3 parts (2n1u) 2850 | -8/Materials | Core integrity fell below 50% 2875 | -8/Materials | Core integrity fell below 20% 2886 | -8/Materials | Core destroyed Last Messages --------------- 02838_ Terrain Scan Processor broken. 02838_ Overheating: Short circuit. 02839_ K-01 Serf collects debris. 02841_ Particle Gun destroyed. 02842_ Lgt. Deuterium Engine destroyed. 02843_ Aluminum Leg destroyed. 02851_ K-01 Serf collects debris. 02854_ Aluminum Leg destroyed. 02854_ K-01 Serf collects debris. 02855_ Particle Gun broken. 02855_ Overheating: Short circuit. 02861_ Acquired EM Shotgun. 02871_ G-47 Trooper misfires. 02871_ Critical hit (Burn: +37). 02871_ G-47 Trooper destroyed. 02874_ Terrain Scanner destroyed. 02876_ Critical hit (Burn: +37). 02883_ EM Shotgun destroyed. 02884_ Slammed into G-47 Trooper. 02886_ Destabilizing: Core damaged (-27). Map ----- +----------------------------------------------------+ | | | | | | | | | | | ??????????????????#??????????????????????????????? | | ???????????????????#???#??##?#???????????????????? | | ?????????????????#?????#??#??????????????????????? | | ??????????????????########?????#?????????????????? | | ???????????????#??# #???#?##?#??????????????? | | ??????????????? ??# """ ###?#?###########???????? | | ????????####### ### """ ###?#?# #???????? | | ????????# # ### """ ####### T #???????? | | ??####### # ### # + """ #?#?????? | | ### #] ! # ### # #### """ #???????? | | # # ######+### #### """ #???????? | | # # ** #### ! ###?????? | | # + = # # #???????? | | ## # # = ## # ##??????? | | ?# # ########!##! | #####+#####??###?? | | ?# ## # !!####### ##?#?????? | | ?## ## [ "T" # == = *! #?????#??? | | ??## ]## """ # !% =*!%= #??##??#?? | | ??# # ## # *[ =%=! ##???????? | | ??# ###################/#####+## #?#??#???" | | ??## ???? ???#??#[!!%@g = u## #?##??? ?? | | ??## ????#?????# ! % # ##?#??#???? | | ???# # "?????#?###[! Y """ " # #?#?#?????? | | ???# # ???#????## """"" ## %###?#??#? ? | | ???# + ""????#??## """"" ## #?#??###??? | | ??? # ????????## # #??##?? ?? | | ???? #????????????############### %! #????? ?? | | ????? ??????????????#??#??###??? = ##???????? | | ??????????????????????? ? ? ?? #?????? ?? | | ????????????????????????#??###????"" #????????? | | ???????????????????????????#?#???""""" #???? ???? | | ????????????????????????????T?????"""" ##???????? | | ??????????????????????????????? ???""" #????????? | | ????????????????????????????????????"? #????????? | | ????????????????????????????????????? #????????? | | ?????????????????????????????????????? ?????????? | | ?????????????????????????????????????????????????? | | ?????????????????????????????????????????????????? | | ?????????????????????????????????????????????????? | | ?????????????????????????????????????????????????? | | ?????????????????????????????????????????????????? | | ?????????????????????????????????????????????????? | | ?????????????????????????????????????????????????? | | ?????????????????????????????????????????????????? | | ?????????????????????????????????????????????????? | +----------------------------------------------------+ Best States ------------- Heat Dissipation 31 Energy Generation 23 Energy Capacity 300 Matter Stores 500 Matter Capacity 500 Sight Range 16 Terrain Scan Range 14 Terrain Scan Density 85 Armor Coverage 450 Utility Shielding 33 Evasion (%) 64 Item Schematics ----------------- None Robot Schematics ------------------ None Fabricated ------------ Nothing Alien Tech Used ----------------- None Achievements -------------- Crack Shot Librarian Part-time Mechanic Remodeling Storm Trooper Challenges ------------ None Game ------ Seed BehemothLatentMonowheel Manual? 0 Play Time 01:23:00 Cumulative 2.3 hours Start 2024.04.09 @ 13:35:00 End 2024.04.10 @ 19:57:09 Sessions 3 Manual Loads 0 Difficulty Rogue Special Mode None Game No. 3 Rogue 3 Adventurer 0 Explorer 0 Win Type - Total 0 Types 0/0/0/0/0/0/0/0/0 Lore% 2 Gallery% 3 Achievement% 3 Wizard Run 0 Options --------- Layout 1 ASCII 0 Keyboard 0 Movement Arrows Keybinds 0 Fullscreen 1 Font 24/Smallcaps Map View 50x35 Zoom Use 0% Tactical HUD 1 Map Filters NONE Filters NONE Steam 1 RUN: 101aa057-9e2f-4fc9-a2d1-2fcd6381c484